fUST/lending_fUST_20241213
["ID","MTS","AMOUNT","RATE_DAILY","PERIOD"]
[345224021,1734100239908,-428.30232851,0.00028493,7]
[345224023,1734100239917,-517.0,0.00028493,7]
[345224025,1734100239927,-500.0,0.00028493,7]
[345224027,1734100239936,-556.87205995,0.00028493,7]
[345224029,1734100239946,-500.0,0.00028493,7]
[345224030,1734100239955,-1171.07,0.00028493,7]
[345224032,1734100239964,-748.98,0.00028493,7]
[345224034,1734100239973,-500.0,0.00028493,7]
[345224036,1734100239983,-592.7,0.00028493,7]
[345224038,1734100239992,-500.0,0.00028493,7]
[345224039,1734100240001,-2461.2,0.00028493,7]
[345224040,1734100240010,-500.0,0.00028493,7]
[345224041,1734100240020,-500.0,0.00028493,7]
[345224043,1734100240030,-500.0,0.00028493,7]
[345224044,1734100240040,-500.0,0.00028493,7]
[345224046,1734100240050,-3898.11,0.00028493,7]
[345224048,1734100240059,-500.0,0.00028493,7]
[345224050,1734100240070,-921.02,0.00028493,7]
[345224051,1734100240087,-675.17,0.00028493,7]
[345224052,1734100240096,-500.0,0.00028493,7]
[345224053,1734100240106,-612.91481615,0.00028493,7]
[345224054,1734100240116,-500.0,0.00028493,7]
[345224056,1734100240128,-500.0,0.00028493,7]
[345224058,1734100240138,-500.0,0.00028493,7]
[345224060,1734100240150,-873.09,0.00028493,7]
[345224061,1734100240163,-1371.19,0.00028493,7]
[345224062,1734100240173,-1899.23,0.00028493,7]
[345224063,1734100240182,-500.0,0.00028493,7]
[345224064,1734100240192,-932.68,0.00028493,7]
[345224065,1734100240204,-500.0,0.00028493,7]
[345224066,1734100240214,-500.0,0.00028493,7]
[345224067,1734100240223,-23486.3,0.00028493,5]
[345224068,1734100240233,-1763.13,0.00028493,7]
[345224069,1734100240243,-1775.5,0.00028493,7]
[345224070,1734100240252,-500.0,0.00028493,7]
[345224071,1734100240262,-688.09,0.00028493,7]
[345224072,1734100240272,-500.0,0.00028493,7]
[345224073,1734100240282,-500.0,0.00028493,7]
[345224074,1734100240291,-500.0,0.00028493,7]
[345224075,1734100240300,-551.0,0.00028493,7]
[345224076,1734100240310,-500.0,0.00028493,7]
[345224077,1734100240319,-500.0,0.00028493,7]
[345224078,1734100240336,-248802.49543857,0.000285,2]
[345224079,1734100240345,-153.01,0.000287,31]
[345224080,1734100240355,-153.01,0.000287,31]
[345224081,1734100240365,-153.01,0.000287,31]
[345224082,1734100240374,-153.01,0.000287,31]
[345224083,1734100240383,-153.01,0.000287,31]
[345224084,1734100240393,-153.01,0.000287,31]
[345224085,1734100240402,-153.01,0.000287,31]
[345224086,1734100240412,-153.01,0.000287,31]
[345224087,1734100240421,-153.01,0.000287,31]
[345224088,1734100240430,-153.01,0.000287,31]
[345224089,1734100240439,-153.01,0.000287,31]
[345224090,1734100240449,-153.01,0.000287,31]
[345224091,1734100240458,-153.01,0.000287,31]
[345224092,1734100240468,-153.01,0.000287,31]
[345224093,1734100240478,-500.0,0.00028767,7]
[345224095,1734100240487,-556.47,0.00028767,7]
[345224097,1734100240495,-500.0,0.00028767,7]
[345224099,1734100240505,-500.0,0.00028767,7]
[345224101,1734100240514,-579.99,0.00028767,7]
[345224102,1734100240524,-500.0,0.00028767,7]
[345224104,1734100240533,-500.0,0.00028767,7]
[345224106,1734100240543,-500.0,0.00028767,7]
[345224108,1734100240553,-500.0,0.00028767,7]
[345224110,1734100240562,-500.0,0.00028767,7]
[345224112,1734100240573,-500.0,0.00028767,7]
[345224113,1734100240584,-969.34,0.00028767,7]
[345224115,1734100240593,-500.0,0.00028767,7]
[345224116,1734100240607,-500.0,0.00028767,7]
[345224117,1734100240617,-500.0,0.00028767,7]
[345224120,1734100240626,-500.0,0.00028767,7]
[345224122,1734100240635,-500.0,0.00028767,7]
[345224124,1734100240644,-500.0,0.00028767,7]
[345224126,1734100240653,-500.0,0.00028767,7]
[345224127,1734100240663,-500.0,0.00028767,7]
[345224128,1734100240672,-500.0,0.00028767,7]
[345224129,1734100240682,-500.0,0.00028767,7]
[345224130,1734100240691,-500.0,0.00028767,7]
[345224131,1734100240701,-500.0,0.00028767,7]
[345224132,1734100240709,-519.64,0.00028767,7]
[345224133,1734100240719,-500.0,0.00028767,7]
[345224135,1734100240728,-168.0,0.00028767,7]
[345224137,1734100240738,-500.0,0.00028767,7]
[345224139,1734100240747,-500.0,0.00028767,7]
[345224141,1734100240757,-500.0,0.00028767,7]
[345224143,1734100240767,-500.0,0.00028767,7]
[345224145,1734100240776,-500.0,0.00028767,7]
[345224147,1734100240785,-500.0,0.00028767,7]
[345224149,1734100240795,-505.68,0.00028767,7]
[345224151,1734100240804,-737.95,0.00028767,7]
[345224153,1734100240814,-649.83,0.00028767,7]
[345224155,1734100240824,-500.0,0.00028767,7]
[345224156,1734100240834,-500.0,0.00028767,7]
[345224158,1734100240847,-500.0,0.00028767,7]
[345224160,1734100240857,-500.0,0.00028767,7]
[345224162,1734100240867,-500.78,0.00028767,7]
[345224164,1734100240876,-1013.12,0.00028767,7]
[345224165,1734100240887,-534.31,0.00028767,7]
[345224166,1734100240897,-590.18,0.00028767,7]
[345224167,1734100240907,-662.47,0.00028767,7]
[345224168,1734100240916,-500.0,0.00028767,7]
[345224169,1734100240926,-764.16,0.00028767,7]
[345224170,1734100240935,-500.0,0.00028767,7]
[345224171,1734100240944,-500.0,0.00028767,7]
[345224172,1734100240954,-508.04,0.00028767,7]
[345224173,1734100240963,-500.0,0.00028767,7]
[345224174,1734100240974,-500.0,0.00028767,7]
[345224175,1734100240983,-500.0,0.00028767,7]
[345224176,1734100240992,-516.33,0.00028767,7]
[345224177,1734100241001,-500.0,0.00028767,7]
[345224178,1734100241011,-745.86,0.00028767,7]
[345224179,1734100241021,-421.25365923,0.00028767,7]
[345224180,1734100241031,-500.0,0.00028767,7]
[345224181,1734100241040,-500.0,0.00028767,7]
[345224182,1734100241050,-500.0,0.00028767,7]
[345224183,1734100241060,-500.0,0.00028767,7]
[345224184,1734100241071,-500.0,0.00028767,7]
[345224185,1734100241088,-500.0,0.00028767,7]
[345224186,1734100241098,-500.0,0.00028767,7]
[345224187,1734100241108,-668.53,0.00028767,7]
[345224188,1734100241118,-402.51205103,0.00028767,7]
[345224189,1734100241131,-634.18,0.00028767,7]
[345224190,1734100241141,-500.0,0.00028767,7]
[345224191,1734100241150,-2147.6,0.00028767,7]
[345224192,1734100241159,-511.54,0.00028767,7]
[345224193,1734100241170,-517.0,0.00028767,7]
[345224194,1734100241179,-500.0,0.00028767,7]
[345224195,1734100241188,-500.0,0.00028767,7]
[345224196,1734100241198,-748.98,0.00028767,7]
[345224197,1734100241208,-1171.07,0.00028767,7]
[345224198,1734100241218,-500.0,0.00028767,7]
[345224199,1734100241227,-592.7,0.00028767,7]
[345224200,1734100241237,-584.6847772,0.00028767,7]
[345224201,1734100241247,-2461.2,0.00028767,7]
[345224202,1734100241256,-500.0,0.00028767,7]
[345224203,1734100241265,-500.0,0.00028767,7]
[345224204,1734100241274,-500.0,0.00028767,7]
[345224205,1734100241284,-500.0,0.00028767,7]
[345224206,1734100241294,-3898.11,0.00028767,7]
[345224207,1734100241303,-500.0,0.00028767,7]
[345224208,1734100241313,-921.02,0.00028767,7]
[345224209,1734100241325,-675.17,0.00028767,7]
[345224210,1734100241338,-500.0,0.00028767,7]
[345224211,1734100241349,-500.0,0.00028767,7]
[345224212,1734100241358,-500.0,0.00028767,7]
[345224213,1734100241373,-500.0,0.00028767,7]
[345224214,1734100241383,-873.09,0.00028767,7]
[345224215,1734100241393,-1371.19,0.00028767,7]
[345224216,1734100241403,-1899.23,0.00028767,7]
[345224218,1734100241412,-427.42767988,0.00028767,7]
[345224219,1734100241421,-932.68,0.00028767,7]
[345224220,1734100241431,-374.9009108,0.00028767,7]
[345224221,1734100241440,-517.6808961,0.00028767,7]
[345224222,1734100241449,-23486.3,0.00028767,5]
[345224223,1734100241459,-1763.13,0.00028767,7]
[345224224,1734100241468,-1775.5,0.00028767,7]
[345224225,1734100241478,-500.0,0.00028767,7]
[345224226,1734100241487,-688.09,0.00028767,7]
[345224227,1734100241497,-500.0,0.00028767,7]
[345224228,1734100241506,-500.0,0.00028767,7]
[345224229,1734100241515,-500.0,0.00028767,7]
[345224230,1734100241525,-551.0,0.00028767,7]
[345224231,1734100241534,-500.0,0.00028767,9]
[345224232,1734100241544,-500.0,0.00028767,7]
[345224233,1734100241554,-500.0,0.00028767,7]
[345224234,1734100241563,-1000.0,0.0002877,5]
[345224235,1734100241573,-300.0,0.000288,14]
[345224236,1734100241582,-300.2,0.00029,2]
[345224237,1734100241591,-302.9394212,0.00029,2]
[345224238,1734100241600,-302.9394212,0.00029,2]
[345224239,1734100241609,-500.0,0.00029041,7]
[345224240,1734100241618,-556.47,0.00029041,7]
[345224241,1734100241628,-500.0,0.00029041,7]
[345224242,1734100241638,-500.0,0.00029041,7]
[345224243,1734100241648,-579.99,0.00029041,7]
[345224244,1734100241657,-500.0,0.00029041,7]
[345224245,1734100241668,-500.0,0.00029041,7]
[345224246,1734100241677,-500.0,0.00029041,7]
[345224247,1734100241687,-500.0,0.00029041,7]
[345224248,1734100241697,-500.0,0.00029041,7]
[345224249,1734100241706,-500.0,0.00029041,7]
[345224250,1734100241715,-969.34,0.00029041,7]
[345224251,1734100241726,-500.0,0.00029041,7]
[345224252,1734100241735,-500.0,0.00029041,7]
[345224253,1734100241745,-546.05297217,0.00029041,7]
[345224254,1734100241754,-500.0,0.00029041,7]
[345224255,1734100241764,-500.0,0.00029041,7]
[345224256,1734100241773,-500.0,0.00029041,7]
[345224257,1734100241783,-500.0,0.00029041,7]
[345224258,1734100241792,-500.0,0.00029041,7]
[345224259,1734100241801,-500.0,0.00029041,7]
[345224260,1734100241811,-500.0,0.00029041,7]
[345224261,1734100241820,-500.0,0.00029041,7]
[345224262,1734100241842,-500.0,0.00029041,7]
[345224263,1734100241851,-519.64,0.00029041,7]
[345224264,1734100241861,-500.0,0.00029041,7]
[345224265,1734100241871,-211.125197,0.00029041,7]
[345224266,1734100241886,-500.0,0.00029041,7]
[345224267,1734100241896,-500.0,0.00029041,7]
[345224268,1734100241905,-500.0,0.00029041,7]
[345224269,1734100241915,-500.0,0.00029041,7]
[345224270,1734100241925,-500.0,0.00029041,7]
[345224271,1734100241935,-500.0,0.00029041,7]
[345224272,1734100241945,-505.68,0.00029041,7]
[345224273,1734100241955,-737.95,0.00029041,7]
[345224274,1734100241964,-649.83,0.00029041,7]
[345224275,1734100241973,-500.0,0.00029041,7]
[345224276,1734100241983,-500.0,0.00029041,7]
[345224277,1734100241992,-500.0,0.00029041,7]
[345224278,1734100242002,-500.0,0.00029041,7]
[345224279,1734100242012,-500.78,0.00029041,7]
[345224280,1734100242023,-1013.12,0.00029041,7]
[345224281,1734100242032,-534.31,0.00029041,7]
[345224282,1734100242042,-590.18,0.00029041,7]
[345224283,1734100242052,-662.47,0.00029041,7]
[345224285,1734100242062,-500.0,0.00029041,7]
[345224286,1734100242071,-764.16,0.00029041,7]
[345224287,1734100242081,-500.0,0.00029041,7]
[345224288,1734100242091,-500.0,0.00029041,7]
[345224289,1734100242101,-508.04,0.00029041,7]
[345224290,1734100242110,-500.0,0.00029041,7]
[345224291,1734100242124,-500.0,0.00029041,7]
[345224292,1734100242133,-500.0,0.00029041,7]
[345224293,1734100242142,-516.33,0.00029041,7]
[345224294,1734100242152,-500.0,0.00029041,7]
[345224295,1734100242163,-745.86,0.00029041,7]
[345224296,1734100242172,-500.0,0.00029041,7]
[345224298,1734100242182,-500.0,0.00029041,7]
[345224300,1734100242321,-478.90830749,0.00029041,7]
[345224301,1734100242341,-500.0,0.00029041,7]
[345224302,1734100242356,-619.7301094,0.00029041,7]
[345224303,1734100242369,-500.0,0.00029041,7]
[345224304,1734100242383,-500.0,0.00029041,7]
[345224305,1734100242394,-668.53,0.00029041,7]
[345224306,1734100242403,-634.18,0.00029041,7]
[345224307,1734100242413,-500.0,0.00029041,7]
[345224308,1734100242423,-2147.6,0.00029041,7]
[345224309,1734100242433,-511.54,0.00029041,7]
[345224310,1734100242444,-517.0,0.00029041,7]
[345224311,1734100242454,-500.0,0.00029041,7]
[345224312,1734100242463,-500.0,0.00029041,7]
[345224313,1734100242474,-1171.07,0.00029041,7]
[345224314,1734100242483,-748.98,0.00029041,7]
[345224315,1734100242492,-500.0,0.00029041,7]
[345224316,1734100242503,-592.7,0.00029041,7]
[345224317,1734100242513,-2461.2,0.00029041,7]
[345224318,1734100242522,-500.0,0.00029041,7]
[345224319,1734100242532,-500.0,0.00029041,7]
[345224320,1734100242542,-500.0,0.00029041,7]
[345224321,1734100242552,-500.0,0.00029041,7]
[345224322,1734100242562,-3898.11,0.00029041,7]
[345224323,1734100242571,-500.0,0.00029041,7]
[345224324,1734100242580,-921.02,0.00029041,7]
[345224325,1734100242590,-675.17,0.00029041,7]
[345224326,1734100242600,-500.0,0.00029041,7]
[345224327,1734100242610,-479.84055425,0.00029041,7]
[345224329,1734100242620,-500.0,0.00029041,7]
[345224330,1734100242629,-500.0,0.00029041,7]
[345224331,1734100242640,-873.09,0.00029041,7]
[345224332,1734100242649,-1371.19,0.00029041,7]
[345224333,1734100242658,-1899.23,0.00029041,7]
[345224334,1734100242668,-932.68,0.00029041,7]
[345224335,1734100242678,-23486.3,0.00029041,5]
[345224336,1734100242688,-1763.13,0.00029041,7]
[345224337,1734100242698,-1775.5,0.00029041,7]
[345224338,1734100242708,-500.0,0.00029041,7]
[345224339,1734100242718,-688.09,0.00029041,7]
[345224340,1734100242728,-500.0,0.00029041,7]
[345224341,1734100242738,-500.0,0.00029041,7]
[345224342,1734100242748,-500.0,0.00029041,7]
[345224343,1734100242758,-551.0,0.00029041,7]
[345224344,1734100242767,-500.0,0.00029041,7]
[345224345,1734100242777,-500.0,0.00029041,7]
[345224347,1734100242787,-153.01,0.000291,31]
[345224348,1734100242797,-153.01,0.000291,31]
[345224350,1734100242807,-153.01,0.000291,31]
[345224351,1734100242816,-153.01,0.000291,31]
[345224353,1734100242827,-153.01,0.000291,31]
[345224354,1734100242836,-153.01,0.000291,31]
[345224355,1734100242846,-153.01,0.000291,31]
[345224356,1734100242855,-153.01,0.000291,31]
[345224357,1734100242866,-153.01,0.000291,31]
[345224358,1734100242875,-153.01,0.000291,31]
[345224359,1734100242885,-153.01,0.000291,31]
[345224360,1734100242895,-153.01,0.000291,31]
[345224361,1734100242906,-153.01,0.000291,31]
[345224362,1734100242916,-153.01,0.000291,31]
[345224363,1734100242927,-500.0,0.00029211,5]
[345224364,1734100242937,-302.9394212,0.0002929,2]
[345224365,1734100242947,-500.0,0.00029315,7]
[345224366,1734100242957,-556.47,0.00029315,7]
[345224367,1734100242967,-500.0,0.00029315,7]
[345224368,1734100242977,-500.0,0.00029315,7]
[345224369,1734100242987,-579.99,0.00029315,7]
[345224370,1734100242997,-500.0,0.00029315,7]
[345224371,1734100243007,-217.04098184,0.00029315,7]
[345224372,1734100243018,-500.0,0.00029315,7]
[345224373,1734100243027,-596.45723994,0.00029315,7]
[345224374,1734100243038,-500.0,0.00029315,7]
[345224375,1734100243047,-500.0,0.00029315,7]
[345224376,1734100243058,-969.34,0.00029315,7]
[345224377,1734100243068,-500.0,0.00029315,7]
[345224378,1734100243085,-500.0,0.00029315,7]
[345224379,1734100243097,-500.0,0.00029315,7]
[345224380,1734100243108,-500.0,0.00029315,7]
[345224381,1734100243118,-500.0,0.00029315,7]
[345224382,1734100243127,-500.0,0.00029315,7]
[345224383,1734100243137,-500.0,0.00029315,7]
[345224384,1734100243147,-500.0,0.00029315,7]
[345224385,1734100243156,-500.0,0.00029315,7]
[345224386,1734100243166,-500.0,0.00029315,7]
[345224387,1734100243177,-500.0,0.00029315,7]
[345224388,1734100243187,-519.64,0.00029315,7]
[345224389,1734100243197,-500.0,0.00029315,7]
[345224390,1734100243207,-500.0,0.00029315,7]
[345224391,1734100243217,-500.0,0.00029315,7]
[345224392,1734100243228,-500.0,0.00029315,7]
[345224393,1734100243237,-500.0,0.00029315,7]
[345224394,1734100243247,-500.0,0.00029315,7]
[345224395,1734100243257,-500.0,0.00029315,7]
[345224396,1734100243269,-505.68,0.00029315,7]
[345224397,1734100243278,-737.95,0.00029315,7]
[345224398,1734100243289,-649.83,0.00029315,7]
[345224399,1734100243298,-280.83992037,0.00029315,7]
[345224401,1734100243308,-500.0,0.00029315,7]
[345224403,1734100243318,-500.0,0.00029315,7]
[345224405,1734100243327,-500.0,0.00029315,7]
[345224407,1734100243337,-500.78,0.00029315,7]
[345224409,1734100243347,-1013.12,0.00029315,7]
[345224411,1734100243357,-534.31,0.00029315,7]
[345224413,1734100243367,-590.18,0.00029315,7]
[345224415,1734100243378,-662.47,0.00029315,7]
[345224416,1734100243387,-500.0,0.00029315,7]
[345224417,1734100243398,-764.16,0.00029315,7]
[345224419,1734100243408,-500.0,0.00029315,7]
[345224420,1734100243417,-500.0,0.00029315,7]
[345224421,1734100243427,-508.04,0.00029315,7]
[345224422,1734100243437,-500.0,0.00029315,7]
[345224423,1734100243447,-500.0,0.00029315,7]
[345224424,1734100243456,-500.0,0.00029315,7]
[345224425,1734100243466,-516.33,0.00029315,7]
[345224426,1734100243476,-500.0,0.00029315,7]
[345224427,1734100243486,-745.86,0.00029315,7]
[345224428,1734100243496,-500.0,0.00029315,7]
[345224431,1734100243506,-500.0,0.00029315,7]
[345224432,1734100243516,-500.0,0.00029315,7]
[345224435,1734100243526,-500.0,0.00029315,7]
[345224437,1734100243536,-500.0,0.00029315,7]
[345224439,1734100243545,-668.53,0.00029315,7]
[345224442,1734100243554,-634.18,0.00029315,7]
[345224445,1734100243563,-500.0,0.00029315,7]
[345224448,1734100243573,-2147.6,0.00029315,7]
[345224450,1734100243583,-511.54,0.00029315,7]
[345224452,1734100243593,-517.0,0.00029315,7]
[345224453,1734100243603,-500.0,0.00029315,7]
[345224456,1734100243612,-500.0,0.00029315,7]
[345224458,1734100243622,-1171.07,0.00029315,7]
[345224459,1734100243633,-748.98,0.00029315,7]
[345224460,1734100243642,-500.0,0.00029315,7]
[345224461,1734100243652,-592.7,0.00029315,7]
[345224462,1734100243662,-2461.2,0.00029315,7]
[345224463,1734100243671,-500.0,0.00029315,7]
[345224464,1734100243681,-500.0,0.00029315,7]
[345224466,1734100243690,-500.0,0.00029315,7]
[345224467,1734100243700,-500.0,0.00029315,7]
[345224468,1734100243710,-3898.11,0.00029315,7]
[345224469,1734100243733,-500.0,0.00029315,7]
[345224470,1734100243743,-921.02,0.00029315,7]
[345224472,1734100243754,-675.17,0.00029315,7]
[345224474,1734100243764,-500.0,0.00029315,7]
[345224476,1734100243775,-500.0,0.00029315,7]
[345224478,1734100243786,-500.0,0.00029315,7]
[345224480,1734100243798,-873.09,0.00029315,7]
[345224482,1734100243808,-1371.19,0.00029315,7]
[345224484,1734100243819,-1899.23,0.00029315,7]
[345224486,1734100243829,-932.68,0.00029315,7]
[345224488,1734100243839,-23486.3,0.00029315,5]
[345224490,1734100243849,-1763.13,0.00029315,7]
[345224492,1734100243859,-1775.5,0.00029315,7]
[345224494,1734100243869,-500.0,0.00029315,7]
[345224496,1734100243879,-688.09,0.00029315,7]
[345224498,1734100243889,-500.0,0.00029315,7]
[345224500,1734100243899,-500.0,0.00029315,7]
[345224502,1734100243909,-551.0,0.00029315,7]
[345224504,1734100243920,-500.0,0.00029315,7]
[345224506,1734100243930,-2000.0,0.000294,2]
[345224507,1734100243941,-153.01,0.000295,31]
[345224508,1734100243952,-153.01,0.000295,31]
[345224509,1734100243962,-153.01,0.000295,31]
[345224510,1734100243973,-153.01,0.000295,31]
[345224511,1734100243984,-153.01,0.000295,31]
[345224513,1734100243994,-153.01,0.000295,31]
[345224515,1734100244004,-153.01,0.000295,31]
[345224517,1734100244014,-153.01,0.000295,31]
[345224519,1734100244024,-153.01,0.000295,31]
[345224521,1734100244034,-153.01,0.000295,31]
[345224523,1734100244044,-153.01,0.000295,31]
[345224525,1734100244054,-153.01,0.000295,31]
[345224527,1734100244064,-153.01,0.000295,31]
[345224529,1734100244075,-153.01,0.000295,31]
[345224531,1734100244093,-302.9394212,0.0002958,2]
[345224533,1734100244104,-500.0,0.00029589,7]
[345224535,1734100244113,-556.47,0.00029589,7]
[345224538,1734100244123,-440.59590954,0.00029589,7]
[345224540,1734100244133,-500.0,0.00029589,7]
[345224542,1734100244143,-579.99,0.00029589,7]
[345224544,1734100244152,-500.0,0.00029589,7]
[345224545,1734100244162,-500.0,0.00029589,7]
[345224547,1734100244172,-297.0,0.00029589,7]
[345224549,1734100244182,-500.0,0.00029589,7]
[345224551,1734100244191,-969.34,0.00029589,7]
[345224553,1734100244202,-500.0,0.00029589,7]
[345224555,1734100244212,-500.0,0.00029589,7]
[345224557,1734100244222,-500.0,0.00029589,7]
[345224560,1734100244233,-500.0,0.00029589,7]
[345224561,1734100244243,-500.0,0.00029589,7]
[345224564,1734100244253,-500.0,0.00029589,7]
[345224566,1734100244263,-500.0,0.00029589,7]
[345224568,1734100244273,-500.0,0.00029589,7]
[345224570,1734100244283,-500.0,0.00029589,7]
[345224572,1734100244293,-246.83883301,0.00029589,7]
[345224574,1734100244304,-500.0,0.00029589,7]
[345224576,1734100244313,-519.64,0.00029589,7]
[345224578,1734100244323,-500.0,0.00029589,7]
[345224580,1734100244333,-500.0,0.00029589,7]
[345224582,1734100244342,-500.0,0.00029589,7]
[345224584,1734100244352,-500.0,0.00029589,7]
[345224585,1734100244363,-500.0,0.00029589,7]
[345224587,1734100244373,-500.0,0.00029589,7]
[345224589,1734100244383,-500.0,0.00029589,7]
[345224591,1734100244392,-505.68,0.00029589,7]
[345224593,1734100244402,-737.95,0.00029589,7]
[345224595,1734100244412,-649.83,0.00029589,7]
[345224596,1734100244421,-500.0,0.00029589,7]
[345224597,1734100244432,-500.0,0.00029589,7]
[345224598,1734100244442,-633.65491155,0.00029589,7]
[345224599,1734100244451,-500.78,0.00029589,7]
[345224600,1734100244461,-1013.12,0.00029589,7]
[345224601,1734100244471,-534.31,0.00029589,7]
[345224603,1734100244480,-590.18,0.00029589,7]
[345224605,1734100244490,-662.47,0.00029589,7]
[345224607,1734100244500,-500.0,0.00029589,7]
[345224609,1734100244511,-764.16,0.00029589,7]
[345224611,1734100244521,-500.0,0.00029589,7]
[345224613,1734100244531,-413.60635772,0.00029589,7]
[345224615,1734100244541,-508.04,0.00029589,7]
[345224616,1734100244550,-500.0,0.00029589,7]
[345224617,1734100244559,-500.0,0.00029589,7]
[345224618,1734100244568,-500.0,0.00029589,7]
[345224619,1734100244577,-516.33,0.00029589,7]
[345224620,1734100244587,-500.0,0.00029589,7]
[345224621,1734100244597,-745.86,0.00029589,7]
[345224622,1734100244606,-500.0,0.00029589,7]
[345224623,1734100244616,-500.0,0.00029589,7]
[345224624,1734100244625,-500.0,0.00029589,7]
[345224625,1734100244635,-500.0,0.00029589,7]
[345224626,1734100244644,-500.0,0.00029589,7]
[345224627,1734100244654,-668.53,0.00029589,7]
[345224628,1734100244664,-634.18,0.00029589,7]
[345224629,1734100244675,-500.0,0.00029589,7]
[345224630,1734100244685,-2147.6,0.00029589,7]
[345224631,1734100244695,-511.54,0.00029589,7]
[345224632,1734100244705,-517.0,0.00029589,7]
[345224633,1734100244716,-500.0,0.00029589,7]
[345224634,1734100244726,-500.0,0.00029589,7]
[345224635,1734100244736,-1171.07,0.00029589,7]
[345224636,1734100244746,-644.06727019,0.00029589,7]
[345224646,1734100244862,-104.91272981,0.00029589,7]
[345224648,1734100244872,-500.0,0.00029589,7]
[345224650,1734100244882,-592.7,0.00029589,7]
[345224652,1734100244892,-2461.2,0.00029589,7]
[345224654,1734100244901,-500.0,0.00029589,7]
[345224656,1734100244911,-500.0,0.00029589,7]
[345224658,1734100244921,-500.0,0.00029589,7]
[345224660,1734100244931,-500.0,0.00029589,7]
[345224662,1734100244941,-3898.11,0.00029589,7]
[345224664,1734100244951,-500.0,0.00029589,7]
[345224666,1734100244960,-921.02,0.00029589,7]
[345224668,1734100244972,-675.17,0.00029589,7]
[345224670,1734100244981,-500.0,0.00029589,7]
[345224671,1734100244991,-500.0,0.00029589,7]
[345224672,1734100245001,-500.0,0.00029589,7]
[345224673,1734100245011,-873.09,0.00029589,7]
[345224674,1734100245020,-1371.19,0.00029589,7]
[345224675,1734100245030,-1899.23,0.00029589,7]
[345224676,1734100245040,-932.68,0.00029589,7]
[345224677,1734100245050,-23486.3,0.00029589,5]
[345224678,1734100245059,-1763.13,0.00029589,7]
[345224679,1734100245069,-1775.5,0.00029589,7]
[345224680,1734100245092,-500.0,0.00029589,7]
[345224681,1734100245102,-688.09,0.00029589,7]
[345224682,1734100245112,-500.0,0.00029589,7]
[345224683,1734100245122,-500.0,0.00029589,7]
[345224684,1734100245131,-551.0,0.00029589,7]
[345224685,1734100245140,-500.0,0.00029589,7]
[345224686,1734100245150,-420.0,0.00029599,2]
[345224687,1734100245160,-3379.68,0.000296,30]
[345224688,1734100245170,-1000.0,0.00029759,5]